2CCN - Level 2 Cost Centre Name,,9CCN - Level 9 Cost Centre Name,9CCC - Level 9 Cost Centre Code,9AN - Level 9 Account Name,9AC - Level 9 Account Code,Date posted,Date of transaction,Merchant Name,Merchant City,Merchant State,Merchant Zip Code,Originating Account Name,Originating Account Number,MCC/SIC Code,MCC Description,Original Amount,Currency,Conversion Rate,Billed Amount,Debit Credit,Reference Number,Statement Cycle,Account Name
Gloucester City Council,23UE,Museum of Gloucester,MU002,Catering Provisions,3103,04/08/2017,03/08/2017,CO-OPERATIVE FOOD,GLOUCESTER,,GL1 1EA,REDACTED,556*********2362,5411,"GROCERY STORES, SUPERMARKETS",2.9,Pound Sterling (826),1.000000000,2.9,Debit,05230657216720075051202,02/09/2017,GLOUCESTER CC
Gloucester City Council,23UE,Gloucester Life Museum,MU005,Catering Provisions,3103,07/08/2017,04/08/2017,CO-OPERATIVE FOOD,GLOUCESTER,,GL1 1EA,REDACTED,556*********2362,5411,"GROCERY STORES, SUPERMARKETS",2.9,Pound Sterling (826),1.000000000,2.9,Debit,05230657218890075693820,02/09/2017,GLOUCESTER CC
Gloucester City Council,23UE,Museum of Gloucester,MU002,Catering Provisions,3103,07/08/2017,05/08/2017,CO-OPERATIVE FOOD,GLOUCESTER,,GL1 1EA,REDACTED,556*********2362,5411,"GROCERY STORES, SUPERMARKETS",2.9,Pound Sterling (826),1.000000000,2.9,Debit,05230657219300070831044,02/09/2017,GLOUCESTER CC
Gloucester City Council,23UE,Museum of Gloucester,MU002,Catering Provisions,3103,16/08/2017,15/08/2017,ASDA SUPERSTORE,GLOUCESTER,GBR,GL1 1DS,REDACTED,556*********2362,5411,"GROCERY STORES, SUPERMARKETS",2.96,Pound Sterling (826),1.000000000,2.96,Debit,45377757228020189196396,02/09/2017,GLOUCESTER CC
Gloucester City Council,23UE,Museum of Gloucester,MU002,Catering Provisions,3103,21/08/2017,18/08/2017,ASDA SUPERSTORE,GLOUCESTER,GBR,GL1 1DS,REDACTED,556*********2362,5411,"GROCERY STORES, SUPERMARKETS",10.94,Pound Sterling (826),1.000000000,10.94,Debit,45377757231050252462933,02/09/2017,GLOUCESTER CC
Gloucester City Council,23UE,Museum of Gloucester,MU002,General Supplies/Materials,3025,24/08/2017,23/08/2017,WILKO RETAIL LIMIT,GLOUCESTER 14,,GL1 1SL,REDACTED,556*********2362,5722,HOUSEHOLD APPLIANCE STORES,10.73,Pound Sterling (826),1.000000000,10.73,Debit,05230657236730070712787,02/09/2017,GLOUCESTER CC
Gloucester City Council,23UE,Museum of Gloucester,MU002,General Supplies/Materials,3025,25/08/2017,24/08/2017,Amazon UK Marketplace,800-279-6620,LUX,L2338,REDACTED,556*********2362,5942,BOOK STORES,22.99,Pound Sterling (826),1.000000000,22.99,Debit,55204727236100765647730,02/09/2017,GLOUCESTER CC
Gloucester City Council,23UE,Gloucester Life Museum,MU005,Catering Provisions,3103,28/08/2017,25/08/2017,ASDA SUPERSTORE,GLOUCESTER,GBR,GL1 1DS,REDACTED,556*********2362,5411,"GROCERY STORES, SUPERMARKETS",5.96,Pound Sterling (826),1.000000000,5.96,Debit,45377757238000271388760,02/09/2017,GLOUCESTER CC
Gloucester City Council,23UE,Countryside Unit,EP003,Operative Clothing Allowances,0502,21/08/2017,19/08/2017,Amazon Prime,amzn.co.uk/pm,LUX,L2338,REDACTED,556*********6734,5968,CONTINUITY/SUBSCRIPTION MERCHANTS,7.99,Pound Sterling (826),1.000000000,7.99,Debit,55204727231100623299844,02/09/2017,GLOUCESTER CC
Gloucester City Council,23UE,Countryside Unit,EP003,Operative Clothing Allowances,0502,25/08/2017,24/08/2017,PAYPAL *HOME FUSION,35314369001,GBR,TW91EH,REDACTED,556*********6734,5932,ANTIQUE SHOPS,3.98,Pound Sterling (826),1.000000000,3.98,Debit,85130087236733309171919,02/09/2017,GLOUCESTER CC
Gloucester City Council,23UE,Civica Admin Charges,BI002,Professional Advice/Consultants Fees,3952,15/08/2017,14/08/2017,WWW.GOV.UK,C@HMCTS.GSI.G,,LS1 2BA,REDACTED,556*********3029,8999,PROFESSIONAL SERVICES NOT ELSEWHERE CLASSIFIED,10,Pound Sterling (826),1.000000000,10,Debit,05230657227160073192616,02/09/2017,GLOUCESTER CC
Gloucester City Council,23UE,External Communications,CM001,Advertising & Publicity,3404,24/08/2017,23/08/2017,FACEBK DPFSSD2KW2,fb.me/ads,IRL,2,REDACTED,556*********3029,7311,ADVERTISING SERVICES,27.88,Pound Sterling (826),1.000000000,27.88,Debit,15265677235393662371243,02/09/2017,GLOUCESTER CC
Gloucester City Council,23UE,External Communications,CM001,Advertising & Publicity,3404,01/09/2017,01/09/2017,FACEBK JFD6FDAKW2,fb.me/ads,IRL,2,REDACTED,556*********3029,7311,ADVERTISING SERVICES,42.45,Pound Sterling (826),1.000000000,42.45,Debit,15265677243828612681241,02/09/2017,GLOUCESTER CC
Gloucester City Council,23UE,Docks Complex - Services,AM006,Hospitality & Refreshments,3104,08/08/2017,07/08/2017,SAINSBURYS 2221,GLOUCESTER,GBR,GL2 5SA,REDACTED,556*********1053,5411,"GROCERY STORES, SUPERMARKETS",8.75,Pound Sterling (826),1.000000000,8.75,Debit,25425157220060091926683,02/09/2017,GLOUCESTER CC
Gloucester City Council,23UE,Docks Complex - Services,AM006,Equipment and Furniture,3001,08/08/2017,07/08/2017,B & Q 1179,GLOUCESTER,,GL1 2SG,REDACTED,556*********1053,5211,LUMBER AND BUILDING MATERIALS STORES,5.39,Pound Sterling (826),1.000000000,5.39,Debit,05230657220370071716798,02/09/2017,GLOUCESTER CC
Gloucester City Council,23UE,Docks Complex - Services,AM006,Equipment and Furniture,3001,18/08/2017,17/08/2017,B & Q 1179,GLOUCESTER,,GL1 2SG,REDACTED,556*********1053,5211,LUMBER AND BUILDING MATERIALS STORES,11.62,Pound Sterling (826),1.000000000,11.62,Debit,05230657230680070002273,02/09/2017,GLOUCESTER CC
Gloucester City Council,23UE,Docks Complex - Services,AM006,General Supplies/Materials,3025,22/08/2017,21/08/2017,SAFETYSHOP,STOCKPORT,GBR,SK62RR,REDACTED,556*********1053,5099,"DURABLE GOODS,NOT ELSEWHERE CLASSIFIED",71.99,Pound Sterling (826),1.000000000,71.99,Debit,85207147233733034782538,02/09/2017,GLOUCESTER CC
Gloucester City Council,23UE,Housing Strategy & Enabling,SH001,Public Transport - Staff,2402,03/08/2017,02/08/2017,Trainline,London,GBR,1445,REDACTED,556*********6959,4112,PASSENGER RAILWAYS,39.88,Pound Sterling (826),1.000000000,39.88,Debit,85130087214730607822975,02/09/2017,GLOUCESTER CC
Gloucester City Council,23UE,Homelessness,HS002,B&B Payments,1303,04/08/2017,03/08/2017,TRAVELODGE GB0000,THAME,,OX9 3AT,REDACTED,556*********6959,3615,TRAVELODGE,441,Pound Sterling (826),1.000000000,441,Debit,55504437215298191061803,02/09/2017,GLOUCESTER CC
Gloucester City Council,23UE,Homelessness,HS002,B&B Payments,1303,08/08/2017,07/08/2017,TRAVELODGE GB0000,THAME,,OX9 3AT,REDACTED,556*********6959,3615,TRAVELODGE,430,Pound Sterling (826),1.000000000,430,Debit,55504437219298118187166,02/09/2017,GLOUCESTER CC
Gloucester City Council,23UE,Homelessness,HS002,B&B Payments,1303,08/08/2017,07/08/2017,TRAVELODGE GB0000,THAME,,OX9 3AT,REDACTED,556*********6959,3615,TRAVELODGE,395,Pound Sterling (826),1.000000000,395,Debit,55504437219298118197173,02/09/2017,GLOUCESTER CC
Gloucester City Council,23UE,Homelessness,HS002,B&B Payments,1303,09/08/2017,08/08/2017,TRAVELODGE GB0000,THAME,,OX9 3AT,REDACTED,556*********6959,3615,TRAVELODGE,445,Pound Sterling (826),1.000000000,445,Debit,55504437220298125581036,02/09/2017,GLOUCESTER CC
Gloucester City Council,23UE,Homelessness,HS002,B&B Payments,1303,09/08/2017,08/08/2017,TRAVELODGE GB0000,THAME,,OX9 3AT,REDACTED,556*********6959,3615,TRAVELODGE,89,Pound Sterling (826),1.000000000,89,Debit,55504437220298125606817,02/09/2017,GLOUCESTER CC
Gloucester City Council,23UE,Homelessness,HS002,B&B Payments,1303,10/08/2017,09/08/2017,TRAVELODGE GB0000,THAME,,OX9 3AT,REDACTED,556*********6959,3615,TRAVELODGE,125,Pound Sterling (826),1.000000000,125,Debit,55504437221298132711823,02/09/2017,GLOUCESTER CC
Gloucester City Council,23UE,Homelessness,HS002,B&B Payments,1303,11/08/2017,10/08/2017,TRAVELODGE GB0000,THAME,,OX9 3AT,REDACTED,556*********6959,3615,TRAVELODGE,524,Pound Sterling (826),1.000000000,524,Debit,55504437222298139829064,02/09/2017,GLOUCESTER CC
Gloucester City Council,23UE,Homelessness,HS002,B&B Payments,1303,11/08/2017,10/08/2017,TRAVELODGE GB0000,THAME,,OX9 3AT,REDACTED,556*********6959,3615,TRAVELODGE,56,Pound Sterling (826),1.000000000,56,Debit,55504437222298139820998,02/09/2017,GLOUCESTER CC
Gloucester City Council,23UE,Homelessness,HS002,B&B Payments,1303,11/08/2017,10/08/2017,TRAVELODGE GB0000,THAME,,OX9 3AT,REDACTED,556*********6959,3615,TRAVELODGE,376,Pound Sterling (826),1.000000000,376,Debit,55504437222298139829932,02/09/2017,GLOUCESTER CC
Gloucester City Council,23UE,Homelessness,HS002,B&B Payments,1303,15/08/2017,14/08/2017,TRAVELODGE GB0000,THAME,,OX9 3AT,REDACTED,556*********6959,3615,TRAVELODGE,553,Pound Sterling (826),1.000000000,553,Debit,55504437226298166165081,02/09/2017,GLOUCESTER CC
Gloucester City Council,23UE,Homelessness,HS002,B&B Payments,1303,16/08/2017,15/08/2017,TRAVELODGE GB0000,THAME,,OX9 3AT,REDACTED,556*********6959,3615,TRAVELODGE,371,Pound Sterling (826),1.000000000,371,Debit,55504437227298173211067,02/09/2017,GLOUCESTER CC
Gloucester City Council,23UE,Homelessness,HS002,B&B Payments,1303,16/08/2017,15/08/2017,TRAVELODGE GB0000,THAME,,OX9 3AT,REDACTED,556*********6959,3615,TRAVELODGE,401,Pound Sterling (826),1.000000000,401,Debit,55504437227298173206612,02/09/2017,GLOUCESTER CC
Gloucester City Council,23UE,Homelessness,HS002,B&B Payments,1303,18/08/2017,17/08/2017,TRAVELODGE GB0000,THAME,,OX9 3AT,REDACTED,556*********6959,3615,TRAVELODGE,321,Pound Sterling (826),1.000000000,321,Debit,55504437229298187384395,02/09/2017,GLOUCESTER CC
Gloucester City Council,23UE,Homelessness,HS002,B&B Payments,1303,21/08/2017,18/08/2017,TRAVELODGE GB0000,THAME,,OX9 3AT,REDACTED,556*********6959,3615,TRAVELODGE,238,Pound Sterling (826),1.000000000,238,Debit,55504437230298195292348,02/09/2017,GLOUCESTER CC
Gloucester City Council,23UE,Homelessness,HS002,B&B Payments,1303,22/08/2017,21/08/2017,TRAVELODGE GB0000,THAME,,OX9 3AT,REDACTED,556*********6959,3615,TRAVELODGE,832,Pound Sterling (826),1.000000000,832,Debit,55504437233298114403635,02/09/2017,GLOUCESTER CC
Gloucester City Council,23UE,Homelessness,HS002,B&B Payments,1303,23/08/2017,22/08/2017,TRAVELODGE GB0000,THAME,,OX9 3AT,REDACTED,556*********6959,3615,TRAVELODGE,459,Pound Sterling (826),1.000000000,459,Debit,55504437234298120473597,02/09/2017,GLOUCESTER CC
Gloucester City Council,23UE,Homelessness,HS002,B&B Payments,1303,24/08/2017,23/08/2017,TRAVELODGE GB0000,THAME,,OX9 3AT,REDACTED,556*********6959,3615,TRAVELODGE,69,Pound Sterling (826),1.000000000,69,Debit,55504437235298128634777,02/09/2017,GLOUCESTER CC
Gloucester City Council,23UE,Homelessness,HS002,B&B Payments,1303,28/08/2017,24/08/2017,TRAVELODGE GB0000,THAME,,OX9 3AT,REDACTED,556*********6959,3615,TRAVELODGE,515,Pound Sterling (826),1.000000000,515,Debit,55504437237298145669515,02/09/2017,GLOUCESTER CC
Gloucester City Council,23UE,Homelessness,HS002,B&B Payments,1303,28/08/2017,25/08/2017,TRAVELODGE GB0000,THAME,,OX9 3AT,REDACTED,556*********6959,3615,TRAVELODGE,250,Pound Sterling (826),1.000000000,250,Debit,55504437237298151577842,02/09/2017,GLOUCESTER CC
Gloucester City Council,23UE,Homelessness,HS002,B&B Payments,1303,30/08/2017,29/08/2017,TRAVELODGE GB0000,THAME,,OX9 3AT,REDACTED,556*********6959,3615,TRAVELODGE,65,Pound Sterling (826),1.000000000,65,Debit,55504437241298177509989,02/09/2017,GLOUCESTER CC
Gloucester City Council,23UE,Homelessness,HS002,B&B Payments,1303,31/08/2017,30/08/2017,TRAVELODGE GB0000,THAME,,OX9 3AT,REDACTED,556*********6959,3615,TRAVELODGE,65,Pound Sterling (826),1.000000000,65,Debit,55504437242298185115737,02/09/2017,GLOUCESTER CC
Gloucester City Council,23UE,Homelessness,HS002,B&B Payments,1303,01/09/2017,31/08/2017,TRAVELODGE GB0000,THAME,,OX9 3AT,REDACTED,556*********6959,3615,TRAVELODGE,61,Pound Sterling (826),1.000000000,61,Debit,55504437243298192780324,02/09/2017,GLOUCESTER CC
Gloucester City Council,23UE,Homelessness,HS002,B&B Payments,1303,01/09/2017,31/08/2017,TRAVELODGE GB0000,THAME,,OX9 3AT,REDACTED,556*********6959,3615,TRAVELODGE,61,Pound Sterling (826),1.000000000,61,Debit,55504437243298192861934,02/09/2017,GLOUCESTER CC
Gloucester City Council,23UE,Homelessness,HS002,B&B Payments,1303,01/09/2017,31/08/2017,TRAVELODGE GB0000,THAME,,OX9 3AT,REDACTED,556*********6959,3615,TRAVELODGE,465,Pound Sterling (826),1.000000000,465,Debit,55504437243298192858898,02/09/2017,GLOUCESTER CC
Gloucester City Council,23UE,Homelessness,HS002,B&B Payments,1303,01/09/2017,31/08/2017,TRAVELODGE GB0000,THAME,,OX9 3AT,REDACTED,556*********6959,3615,TRAVELODGE,549,Pound Sterling (826),1.000000000,549,Debit,55504437243298192808216,02/09/2017,GLOUCESTER CC
Gloucester City Council,23UE,Guildhall Bar & Caf�,GH005,Catering Provisions,3103,04/08/2017,03/08/2017,CO-OPERATIVE FOOD,GLOUCESTER,,GL1 1EA,REDACTED,556*********5661,5411,"GROCERY STORES, SUPERMARKETS",5.11,Pound Sterling (826),1.000000000,5.11,Debit,05230657216740075051226,02/09/2017,GLOUCESTER CC
Gloucester City Council,23UE,Blackfriars,GH010,Catering Provisions,3103,07/08/2017,06/08/2017,ICELAND,GLOUCESTER,GBR,GL1 1SA,REDACTED,556*********5661,5411,"GROCERY STORES, SUPERMARKETS",10.03,Pound Sterling (826),1.000000000,10.03,Debit,65377757219050865164607,02/09/2017,GLOUCESTER CC
Gloucester City Council,23UE,Guildhall Bar & Caf�,GH005,Catering Provisions,3103,07/08/2017,06/08/2017,TESCO STORES 5166,GLOUCESTER,GBR,GL1 5SY,REDACTED,556*********5661,5411,"GROCERY STORES, SUPERMARKETS",2,Pound Sterling (826),1.000000000,2,Debit,85377757219051029702769,02/09/2017,GLOUCESTER CC
Gloucester City Council,23UE,Guildhall Bar & Caf�,GH005,Catering Provisions,3103,08/08/2017,07/08/2017,TESCO STORES 3074,GLOUCESTER,GBR,GL2 4PF,REDACTED,556*********5661,5411,"GROCERY STORES, SUPERMARKETS",3.2,Pound Sterling (826),1.000000000,3.2,Debit,35377757220060193012519,02/09/2017,GLOUCESTER CC
Gloucester City Council,23UE,Guildhall Bar & Caf�,GH005,Catering Provisions,3103,10/08/2017,09/08/2017,TESCO STORE 2581,GLOUCESTER,GBR,GL1 2SR,REDACTED,556*********5661,5411,"GROCERY STORES, SUPERMARKETS",11.29,Pound Sterling (826),1.000000000,11.29,Debit,35377757222080179440334,02/09/2017,GLOUCESTER CC
Gloucester City Council,23UE,Guildhall Bar & Caf�,GH005,Catering Provisions,3103,15/08/2017,14/08/2017,ASDA STORES 4799,KINGSWAY,GBR,GL2 2SN,REDACTED,556*********5661,5411,"GROCERY STORES, SUPERMARKETS",7.51,Pound Sterling (826),1.000000000,7.51,Debit,45377757227010195090221,02/09/2017,GLOUCESTER CC
Gloucester City Council,23UE,Guildhall Bar & Caf�,GH005,Catering Provisions,3103,15/08/2017,14/08/2017,ICELAND,GLOUCESTER,GBR,GL1 1SA,REDACTED,556*********5661,5411,"GROCERY STORES, SUPERMARKETS",4.95,Pound Sterling (826),1.000000000,4.95,Debit,35377757227010132195290,02/09/2017,GLOUCESTER CC
Gloucester City Council,23UE,Guildhall Bar & Caf�,GH005,Catering Provisions,3103,22/08/2017,21/08/2017,ICELAND,GLOUCESTER,GBR,GL1 1SA,REDACTED,556*********5661,5411,"GROCERY STORES, SUPERMARKETS",5.34,Pound Sterling (826),1.000000000,5.34,Debit,35377757234060124725332,02/09/2017,GLOUCESTER CC
Gloucester City Council,23UE,Guildhall Bar & Caf�,GH005,Catering Provisions,3103,23/08/2017,22/08/2017,ICELAND,GLOUCESTER,GBR,GL1 1SA,REDACTED,556*********5661,5411,"GROCERY STORES, SUPERMARKETS",4.35,Pound Sterling (826),1.000000000,4.35,Debit,35377757235070173793809,02/09/2017,GLOUCESTER CC
Gloucester City Council,23UE,Guildhall Bar & Caf�,GH005,Catering Provisions,3103,30/08/2017,29/08/2017,ICELAND,GLOUCESTER,GBR,GL1 1SA,REDACTED,556*********5661,5411,"GROCERY STORES, SUPERMARKETS",7.02,Pound Sterling (826),1.000000000,7.02,Debit,35377757242010141724479,02/09/2017,GLOUCESTER CC
Gloucester City Council,23UE,Contact Centre,CT001,Equipment and Furniture,3001,07/08/2017,04/08/2017,Amazon UK Marketplace,800-279-6620,LUX,L2338,REDACTED,556*********3822,5942,BOOK STORES,34.92,Pound Sterling (826),1.000000000,34.92,Debit,55204727216100040859583,02/09/2017,GLOUCESTER CC
Gloucester City Council,23UE,Managing Director & Directors,MT001,Stationery,3201,07/08/2017,05/08/2017,Amazon EU,AMAZON.CO.UK,LUX,L2338,REDACTED,556*********3822,5969,ALL OTHER DIRECT MARKETERS,52.71,Pound Sterling (826),1.000000000,52.71,Debit,55204727217100721869512,02/09/2017,GLOUCESTER CC
Gloucester City Council,23UE,Managing Director & Directors,MT001,Stationery,3201,07/08/2017,05/08/2017,AMAZON UK RETAIL AMAZO,AMAZON.CO.UK,LUX,,REDACTED,556*********3822,5999,MISCELLANEOUS AND RETAIL STORES,23.19,Pound Sterling (826),1.000000000,23.19,Debit,85389247217730710350109,02/09/2017,GLOUCESTER CC
Gloucester City Council,23UE,Council Streetcare Team,NE002,External Training Course Fees,0550,18/08/2017,17/08/2017,Trainline,London,GBR,1445,REDACTED,556*********3822,4112,PASSENGER RAILWAYS,70.18,Pound Sterling (826),1.000000000,70.18,Debit,85130087229732101345613,02/09/2017,GLOUCESTER CC
Gloucester City Council,23UE,Guildhall Events,GH002,Professional Advice/Consultants Fees,3952,03/08/2017,02/08/2017,MIPERMIT PARKING-DOM,INTERNET,GBR,SN15 5FD,REDACTED,556*********8256,7523,AUTOMOBILE PARKING LOTS AND GARAGES,10,Pound Sterling (826),1.000000000,10,Debit,25425157215030089097968,02/09/2017,GLOUCESTER CC
Gloucester City Council,23UE,Guildhall Events,GH002,Professional Advice/Consultants Fees,3952,04/08/2017,03/08/2017,MIPERMIT PARKING-DOM,INTERNET,GBR,SN15 5FD,REDACTED,556*********8256,7523,AUTOMOBILE PARKING LOTS AND GARAGES,20,Pound Sterling (826),1.000000000,20,Debit,25425157216040095043343,02/09/2017,GLOUCESTER CC
Gloucester City Council,23UE,Guildhall Events,GH002,Professional Advice/Consultants Fees,3952,07/08/2017,05/08/2017,MIPERMIT PARKING-DOM,INTERNET,GBR,SN15 5FD,REDACTED,556*********8256,7523,AUTOMOBILE PARKING LOTS AND GARAGES,10,Pound Sterling (826),1.000000000,10,Debit,95425157218050499224200,02/09/2017,GLOUCESTER CC
Gloucester City Council,23UE,Guildhall Events,GH002,Professional Advice/Consultants Fees,3952,14/08/2017,11/08/2017,PAYPAL *TRAINLINE,35314369001,GBR,EC1N2TD,REDACTED,556*********8256,4789,TRANSPORTATION SERVICES NOT ELSEWHERE CLASSIFIED,53.9,Pound Sterling (826),1.000000000,53.9,Debit,85130087223731907753414,02/09/2017,GLOUCESTER CC
Gloucester City Council,23UE,Guildhall Events,GH002,Professional Advice/Consultants Fees,3952,14/08/2017,11/08/2017,PAYPAL *TRAINLINE,35314369001,GBR,EC1N2TD,REDACTED,556*********8256,4789,TRANSPORTATION SERVICES NOT ELSEWHERE CLASSIFIED,53.9,Pound Sterling (826),1.000000000,53.9,Debit,85130087223731907768602,02/09/2017,GLOUCESTER CC
Gloucester City Council,23UE,Gloucester Guildhall,GH001,Cleaning Services & Materials,1500,15/08/2017,14/08/2017,WILKO RETAIL LIMIT,GLOUCESTER 14,,GL1 1SL,REDACTED,556*********8256,5722,HOUSEHOLD APPLIANCE STORES,4,Pound Sterling (826),1.000000000,4,Debit,05230657227390070712542,02/09/2017,GLOUCESTER CC
Gloucester City Council,23UE,Guildhall Cinema,GH003,Advertising & Publicity,3404,15/08/2017,14/08/2017,WWW.INSTANTPRINT.C,01709 382202,,S63 5DR,REDACTED,556*********8256,7338,QUICK-COPY AND REPRODUCTION SERVICES,16.99,Pound Sterling (826),1.000000000,16.99,Debit,05230657227010076256134,02/09/2017,GLOUCESTER CC
Gloucester City Council,23UE,Gloucester Guildhall,GH001,Building Repairs and Maintenance,1001,16/08/2017,15/08/2017,PAYPAL *DSMELECTRIC,35314369001,GBR,TW91EH,REDACTED,556*********8256,7399,BUSINESS SERVICES NOT ELSEWHERE CLASSIFIED,9.5,Pound Sterling (826),1.000000000,9.5,Debit,85130087227732031167816,02/09/2017,GLOUCESTER CC
Gloucester City Council,23UE,Blackfriars ,GH010,Professional Advice/Consultants Fees,3952,17/08/2017,16/08/2017,WWW.SILVERBACKTRAINING,INTERNET,GBR,M12 5BT,REDACTED,556*********8256,8249,VOCATIONAL AND TRADE SCHOOLS,267.32,Pound Sterling (826),1.000000000,267.32,Debit,35425157229030153499135,02/09/2017,GLOUCESTER CC
Gloucester City Council,23UE,Museum of Gloucester,MU002,Advertising & Publicity,3404,17/08/2017,16/08/2017,WWW.INSTANTPRINT.C,01709 382202,,S63 5DR,REDACTED,556*********8256,7338,QUICK-COPY AND REPRODUCTION SERVICES,51.99,Pound Sterling (826),1.000000000,51.99,Debit,05230657229130077805099,02/09/2017,GLOUCESTER CC
Gloucester City Council,23UE,Gloucester Life Museum,MU005,Advertising & Publicity,3404,24/08/2017,23/08/2017,MIPERMIT PARKING-DOM,INTERNET,GBR,SN15 5FD,REDACTED,556*********8256,7523,AUTOMOBILE PARKING LOTS AND GARAGES,10,Pound Sterling (826),1.000000000,10,Debit,25425157236080088204391,02/09/2017,GLOUCESTER CC
Gloucester City Council,23UE,Guildhall Events,GH002,Professional Advice/Consultants Fees,3952,24/08/2017,23/08/2017,MIPERMIT PARKING-DOM,INTERNET,GBR,SN15 5FD,REDACTED,556*********8256,7523,AUTOMOBILE PARKING LOTS AND GARAGES,10,Pound Sterling (826),1.000000000,10,Debit,25425157236080088204995,02/09/2017,GLOUCESTER CC
Gloucester City Council,23UE,Guildhall Events,GH002,Professional Advice/Consultants Fees,3952,24/08/2017,23/08/2017,WWW.INSTANTPRINT.C,01709 382202,,S63 5DR,REDACTED,556*********8256,7338,QUICK-COPY AND REPRODUCTION SERVICES,91,Pound Sterling (826),1.000000000,91,Debit,05230657236970077894309,02/09/2017,GLOUCESTER CC
Gloucester City Council,23UE,Museum of Gloucester,MU002,Advertising & Publicity,3404,28/08/2017,25/08/2017,WWW.INSTANTPRINT.C,01709 382202,,S63 5DR,REDACTED,556*********8256,7338,QUICK-COPY AND REPRODUCTION SERVICES,45.99,Pound Sterling (826),1.000000000,45.99,Debit,05230657238550070358060,02/09/2017,GLOUCESTER CC
Gloucester City Council,23UE,Guildhall Events,GH002,Advertising & Publicity,3404,01/09/2017,31/08/2017,FACEBK W5TB2EA6M2,fb.me/ads,IRL,2,REDACTED,556*********8256,7311,ADVERTISING SERVICES,67.5,Pound Sterling (826),1.000000000,67.5,Debit,15265677243591781271539,02/09/2017,GLOUCESTER CC
Gloucester City Council,23UE,Museum of Gloucester,MU002,Advertising & Publicity,3404,01/09/2017,01/09/2017,FACEBK 7W4CZD2MR2,fb.me/ads,IRL,2,REDACTED,556*********8256,7311,ADVERTISING SERVICES,10.22,Pound Sterling (826),1.000000000,10.22,Debit,15265677243806589481548,02/09/2017,GLOUCESTER CC
Gloucester City Council,23UE,Homelessness,HS002,B&B Payments,1303,03/08/2017,02/08/2017,TRAVELODGE GB0000,THAME,,OX9 3AT,REDACTED,556*********3063,3615,TRAVELODGE,73,Pound Sterling (826),1.000000000,73,Debit,55504437214298182943879,02/09/2017,GLOUCESTER CC
Gloucester City Council,23UE,Homelessness,HS002,B&B Payments,1303,03/08/2017,02/08/2017,TRAVELODGE GB0000,THAME,,OX9 3AT,REDACTED,556*********3063,3615,TRAVELODGE,270,Pound Sterling (826),1.000000000,270,Debit,55504437214298182912122,02/09/2017,GLOUCESTER CC
Gloucester City Council,23UE,Business Transformation,BI006,General Supplies/Materials,3025,10/08/2017,09/08/2017,Amazon UK Marketplace,800-279-6620,LUX,L2338,REDACTED,556*********3063,5942,BOOK STORES,23.61,Pound Sterling (826),1.000000000,23.61,Debit,55204727221100188979147,02/09/2017,GLOUCESTER CC
Gloucester City Council,23UE,Civica Admin Charges,BI002,Professional Advice/Consultants Fees,3952,15/08/2017,14/08/2017,HMCOURTS-SERVICE.G,01452420100,,GL1 2ZG,REDACTED,556*********3063,9222,FINES,3765,Pound Sterling (826),1.000000000,3765,Debit,05230657227410073723450,02/09/2017,GLOUCESTER CC
Gloucester City Council,23UE,Financial Services,FS004,External Training Course Fees,0550,17/08/2017,16/08/2017,WWW.AAT-ORG.UK,LONDON EC1R,,EC1A 4HY,REDACTED,556*********3063,8931,"ACCOUNTING, AUDITING AND BOOKKEEPING SERVICES",92,Pound Sterling (826),1.000000000,92,Debit,55541967229529000004856,02/09/2017,GLOUCESTER CC
Gloucester City Council,23UE,Vehicles,CT002,Hire of Vehicles/Plant,2301,18/08/2017,17/08/2017,ENTERPRISE,01452 419222,,GL2 5HY,REDACTED,556*********3063,3405,ENTERPRISE RENT-A-CAR,425.04,Pound Sterling (826),1.000000000,425.04,Debit,05230657229600077277010,02/09/2017,GLOUCESTER CC
Gloucester City Council,23UE,Vehicles,CT002,Hire of Vehicles/Plant,2301,18/08/2017,17/08/2017,ENTERPRISE,01452 419222,,GL2 5HY,REDACTED,556*********3063,3405,ENTERPRISE RENT-A-CAR,380.02,Pound Sterling (826),1.000000000,380.02,Debit,05230657229610077277027,02/09/2017,GLOUCESTER CC
Gloucester City Council,23UE,Vehicles,CT002,Hire of Vehicles/Plant,2301,18/08/2017,17/08/2017,ENTERPRISE,01252 353600,,GU11 1LZ,REDACTED,556*********3063,3405,ENTERPRISE RENT-A-CAR,60.3,Pound Sterling (826),1.000000000,60.3,Debit,05230657230250072739890,02/09/2017,GLOUCESTER CC
Gloucester City Council,23UE,Elections,DS004,ICT New Hardware,3523,23/08/2017,22/08/2017,PAYPAL *SUDDENIMPAC,35314369001,GBR,TW91EH,REDACTED,556*********3063,5732,ELECTRONIC SALES,445,Pound Sterling (826),1.000000000,445,Debit,85130087234733248881067,02/09/2017,GLOUCESTER CC
Gloucester City Council,23UE,Elections,DS004,ICT New Hardware,3523,23/08/2017,22/08/2017,PAYPAL *FABTEXUK,35314369001,GBR,TW91EH,REDACTED,556*********3063,5999,MISCELLANEOUS AND RETAIL STORES,605,Pound Sterling (826),1.000000000,605,Debit,85130087234733252335430,02/09/2017,GLOUCESTER CC
Gloucester City Council,23UE,Contact Centre,CT001,"ICT Software, Licences & Support",3521,28/08/2017,25/08/2017,SurveyMonkey,Dublin,IRL,4,REDACTED,556*********3063,7372,COMPUTER AND DATA PROCESSING SERVICES,336,Pound Sterling (826),1.000000000,336,Debit,15265677237380977871452,02/09/2017,GLOUCESTER CC
Gloucester City Council,23UE,Business Transformation,BI006,ICT New Hardware,3523,28/08/2017,26/08/2017,Amazon EU,AMAZON.CO.UK,LUX,L2338,REDACTED,556*********3063,5969,ALL OTHER DIRECT MARKETERS,110.33,Pound Sterling (826),1.000000000,110.33,Debit,55204727238100028378113,02/09/2017,GLOUCESTER CC
Gloucester City Council,23UE,Business Transformation,BI006,ICT New Hardware,3523,28/08/2017,27/08/2017,Amazon EU,AMAZON.CO.UK,LUX,L2338,REDACTED,556*********3063,5969,ALL OTHER DIRECT MARKETERS,109.72,Pound Sterling (826),1.000000000,109.72,Debit,55204727239100823055030,02/09/2017,GLOUCESTER CC
